Cogmind - Beta 14 *** ADVENTURER MODE // 2025.04.25 @ 12:51:36 Player: zoefiri Result: Destroyed by D-53 Grenadier with Mini Grenade Launcher Performance ------------- Evolutions (0) 0 Regions Visited (2) 400 Robots Destroyed (17) 85 Value Destroyed (354) 354 Prototype IDs (0) 0 Alien Tech Used (0) 0 Bonus (0) 0 TOTAL SCORE: 839 Bonus ------- None Cogmind --------- Core Integrity 0/250 Matter 211/300 Energy 100/100 System Corruption 0% Temperature Cool (0) Movement Walking (190) Ox1 Location -10/Mines Parts ------- > --- POWER (1) -------- (None) > --- PROPULSION (2) --- Aluminum Leg > --- UTILITY (2) ------ Medium Storage Unit > --- WEAPON (2) ------- Grenade Launcher > --- INVENTORY (10) --- Ion Engine Light Ion Engine Light Ion Engine Light Ion Engine Aluminum Leg Aluminum Leg Improved Heat Sink Weight Redist. System Mining Claw Peak State ------------ > --- POWER ------------ Light Nuclear Core > --- PROPULSION ------- Aluminum Leg Aluminum Leg > --- UTILITY ---------- Medium Storage Unit Light Armor Plating > --- WEAPON ----------- Light Assault Rifle Light Cannon > --- INVENTORY -------- Ion Engine Light Ion Engine Light Ion Engine Light Ion Engine Aluminum Leg Aluminum Leg Heat Sink Weight Redist. System Grenade Launcher Mining Claw [Rating: 10] Favorites ----------- Power Ion Engine Engine Ion Engine Power Core Light Nuclear Core Propulsion Aluminum Leg Leg Aluminum Leg Utility Light Armor Plating Storage Small Storage Unit Protection Light Armor Plating Weapon Light Assault Rifle Energy Gun Medium Laser Ballistic Gun Light Assault Rifle Ballistic Cannon Light Cannon Launcher Grenade Launcher Build | -11 -10 -10 ------- Run | Yrd Mat Min Slots Evolved . | . . . Power . | . . . Propulsion . | . . . Utility . | . . . Weapon . | . . . Parts Attached 19 | 7 4 8 Power 2 | 1 . 1 Engine 1 | 1 . . Core 1 | . . 1 Reactor . | . . . Propulsion 6 | 2 . 4 Treads . | . . . Leg 6 | 2 . 4 Wheel . | . . . Hover . | . . . Flight . | . . . Utility 4 | 1 3 . Device . | . . . Storage 2 | 1 1 . Processor . | . . . Hackware . | . . . Protection 2 | . 2 . Artifact . | . . . Weapon 7 | 3 1 3 Energy Gun 1 | 1 . . Energy Cannon . | . . . Ballistic Gun 2 | 2 . . Ballistic Cannon 2 | . 1 1 Launcher 2 | . . 2 Special Weapon . | . . . Impact Weapon . | . . . Slashing Weapon . | . . . Piercing Weapon . | . . . Special Melee Weapon . | . . . Unidentified Prototypes . | . . . Parts Lost 5 | . . 5 Power 1 | . . 1 Propulsion 1 | . . 1 Utility 1 | . . 1 Weapon 2 | . . 2 Highest Loss Streak 5 | . . 5 To Critical Strikes . | . . . Average Slot Usage (%) 95 | . 93 98 Engine 8 | . 14 . Core 5 | . . 12 Leg 28 | . 28 28 Storage 14 | . 14 14 Protection 10 | . 8 13 Ballistic Gun 21 | . 26 13 Ballistic Cannon 6 | . 1 13 Peak Build Rating 10 | 6 7 10 Average Rating 7 | 4 6 9 On Entrance 4 | . 6 7 Naked Turns . | . . . Heaviest Build 22 | 13 22 22 Greatest Support 20 | 20 20 20 Greatest Overweight (x) 3 | 3 1 1 Average Overweight (x) . | . . 1 Largest Inventory Capacity 10 | 8 10 10 Average Capacity 8 | 7 8 10 Most Carried 10 | 1 8 10 Average Carried 6 | . 5 9 Final Capacity 10 | 8 10 10 Final Carried 9 | 1 8 9 Class Distribution -------------------- 100% | Mutant Dominant Class ---------------- Mutant | -10/Materials Mutant | -10/Mines Resources | -11 -10 -10 ----------- Run | Yrd Mat Min Matter Collected 473 | 203 165 105 Remotely . | . . . Salvage Created 568 | 82 265 221 Parts 32 | 2 20 10 Haulers Intercepted 2 | . 2 . Recyclers Shooed . | . . . Parts Field Recycled . | . . . Retrieved Matter . | . . . Parts Self-Destructed . | . . . Prevented . | . . . Kills | -11 -10 -10 ------- Run | Yrd Mat Min Combat Hostiles Destroyed 17 | . 6 11 Guns 8 | . 6 2 Cannons 3 | . . 3 AOE 6 | . . 6 Classes Destroyed 7 | 1 3 3 Hauler 2 | . 2 . Recycler 2 | 1 1 . Watcher 1 | . 1 . Swarmer 6 | . 6 . Grunt 5 | . . 5 Demolisher 1 | . . 1 Assembled 5 | . . 5 Best Kill Streak 7 | 1 6 7 Combat Bots Only 7 | . 6 7 Max Kills in Single Turn 3 | 1 2 3 Gunslinging 1 | . 1 . Exploded 3 | . . 3 Melee . | . . . Uniques/NPCs Destroyed . | . . . Combat | -11 -10 -10 -------- Run | Yrd Mat Min Hostile Shots Fired 85 | . 29 56 Missed 20 | . 5 15 Damage Taken 923 | . 150 773 Core 255 | . 47 208 Absorbed by Shields . | . . . Ignored by Resistances 262 | . 48 214 Core Remaining (%) 100 | 100 . . Volleys Fired 56 | 9 25 22 Largest 2 | 2 2 2 Hottest 55 | 40 40 55 Shots Fired 107 | 18 50 39 Gun 85 | 18 50 17 Cannon 18 | . . 18 Launcher 4 | . . 4 Special . | . . . Kinetic 103 | 18 50 35 Thermal . | . . . Explosive 4 | . . 4 Electromagnetic . | . . . Robot Hit Streak 22 | 5 9 22 Robot Miss Streak 3 | 1 3 1 Penetration Max . | . . . Secondary Targets 4 | . 4 . Max Gunslinging Chain 1 | . 1 . Shots Hit Robots 86 | 14 37 35 Core Hits 46 | 4 16 26 Critical Kills 1 | . . 1 Critical Parts Destroyed 1 | . 1 . Critical Strikes 2 | . 1 1 Destroy 2 | . 1 1 Melee Attacks . | . . . Impact . | . . . Slashing . | . . . Piercing . | . . . Sneak Attacks . | . . . Combat Hostiles . | . . . Follow-up Attacks . | . . . Damage Inflicted 1292 | 107 297 888 Guns 527 | 107 297 123 Cannons 293 | . . 293 Explosions 472 | . . 472 Melee . | . . . Ramming . | . . . Kinetic 820 | 107 297 416 Thermal . | . . . Explosive 472 | . . 472 Electromagnetic . | . . . Impact . | . . . Slashing . | . . . Piercing . | . . . Highest Corruption . | . . . Average Corruption . | . . . Corruption Purged . | . . . Corruption Blocked . | . . . Overload Shots . | . . . Overflow Damage 19 | . . 19 Projectiles 10 | . . 10 Explosions 9 | . . 9 Melee . | . . . Knockbacks 4 | . . 4 Impact . | . . . Kinetic 4 | . . 4 Secondary . | . . . Self-Inflicted Damage 16 | . . 16 Shots 1 | . . 1 Rammed . | . . . Targets Rammed . | . . . Kicked . | . . . Crushed . | . . . Highest Temperature 120 | . 12 120 Average Temperature 41 | . 6 45 Received Heat Transfer 181 | . . 181 Siege Activations . | . . . Robots Corrupted . | . . . Combat Hostiles . | . . . Parts Fried . | . . . Impact Corruptions . | . . . Robots Melted . | . . . Combat Hostiles . | . . . Parts Melted . | . . . Heat Transferred . | . . . Parts Sabotaged . | . . . Parts Stolen . | . . . Parts Stripped . | . . . Power Chain Reactions . | . . . Alert | -11 -10 -10 ------- Run | Yrd Mat Min Peak Influence 198 | 5 198 140 Initial 2 | . 2 . Average 87 | 1 119 74 Maximum Alert Level . | . . . Low Security (%) 100 | 100 100 100 Level 1 . | . . . Level 2 . | . . . Level 3 . | . . . Level 4 . | . . . Level 5 . | . . . High Security . | . . . Max Security . | . . . Squads Dispatched . | . . . Investigation . | . . . Extermination . | . . . Reinforcement . | . . . Assault . | . . . Garrison . | . . . Intercept . | . . . Searches Triggered . | . . . Construction Impeded . | . . . Haulers Reinforced . | . . . Active Scanning Responses . | . . . Cargo Convoy Interrupts . | . . . Stealth | -11 -10 -10 --------- Run | Yrd Mat Min Distress Signals . | . . . Communications Jammed . | . . . Distress Signals . | . . . Times Spotted 35 | . 9 26 Peak Tracking Total 21 | . 6 21 Tactical Retreats 1 | . 1 . Traps | -11 -10 -10 ------- Run | Yrd Mat Min Traps Triggered . | . . . Indirectly . | . . . Trap Hack Attempts . | . . . Triggered . | . . . Disarmed . | . . . Reprogrammed . | . . . Reused . | . . . Traps Extracted . | . . . Installed . | . . . Triggered . | . . . Machines | -11 -10 -10 ---------- Run | Yrd Mat Min Machines Disabled . | . . . Max in Single Turn . | . . . Machines Repaired . | . . . Machines Dismantled . | . . . Machines Sabotaged . | . . . Overloaded Fab Kills . | . . . Hacking | -11 -10 -10 --------- Run | Yrd Mat Min Machines Accessed . | . . . Terminals . | . . . Fabricators . | . . . Repair Stations . | . . . Recycling Units . | . . . Scanalyzers . | . . . Garrison Access . | . . . Total Hacks . | . . . Successful . | . . . Failed . | . . . Catastrophic . | . . . Database Lockouts . | . . . Manual . | . . . Terminals . | . . . Fabricators . | . . . Repair Stations . | . . . Recycling Units . | . . . Scanalyzers . | . . . Garrison Access . | . . . Terminal Hacks . | . . . Fabricator Hacks . | . . . Repair Station Hacks . | . . . Recycling Unit Hacks . | . . . Scanalyzer . | . . . Garrison Access Hacks . | . . . Unauthorized Hacks . | . . . Terminals . | . . . Fabricators . | . . . Repair Stations . | . . . Recycling Units . | . . . Scanalyzers . | . . . Garrison Access . | . . . Data Cores Recovered . | . . . Used . | . . . Hacking Detections . | . . . Full Trace Events . | . . . Feedback Events . | . . . Feedback Blocked . | . . . Robot Schematics Acquired . | . . . Robots Built . | . . . Authchips . | . . . Time . | . . . Total Robot Build Rating . | . . . Part Schematics Acquired . | . . . Parts Built . | . . . Authchips . | . . . Time . | . . . Total Part Build Rating . | . . . Parts Repaired . | . . . Time . | . . . Parts Recycled . | . . . Recycled Matter . | . . . Retrieved Matter . | . . . Retrieved Components . | . . . Parts Scanalyzed . | . . . Part Schematics Acquired . | . . . Parts Damaged . | . . . Bothacking | -11 -10 -10 ------------ Run | Yrd Mat Min Used RIF Installer . | . . . Robots Hacked . | . . . Non-combat . | . . . Combat . | . . . Robot Hacks Applied . | . . . Relay Couplers Released . | . . . Fabnet Peak Effective % . | . . . Robots Rewired . | . . . Allies Hacked . | . . . Hacks Repelled . | . . . Allies | -11 -10 -10 -------- Run | Yrd Mat Min Total Allies . | . . . Largest Group . | . . . Highest-Rated Group . | . . . Highest-Rated Ally . | . . . Total Orders . | . . . Ally Attacks . | . . . Total Damage . | . . . Kills . | . . . Allies Corrupted . | . . . Allies Melted . | . . . Intel | -11 -10 -10 ------- Run | Yrd Mat Min Robot Analysis Total . | . . . Derelict Logs Recovered . | . . . Drone Launches . | . . . Drone Recoveries . | . . . Exploration | -11 -10 -10 ------------- Run | Yrd Mat Min Turns Passed 974 | 130 489 355 Spaces Moved 551 | 78 327 146 Core 22 | 22 . . Treads . | . . . Legs 529 | 56 327 146 Wheels . | . . . Hover . | . . . Flight . | . . . Fastest Speed 50 | 50 120 190 Average Speed 142 | 122 125 190 Slowest Speed 200 | 200 190 190 Overloaded Moves . | . . . Propulsion Burnouts . | . . . Robots Hopped . | . . . Cave-ins Triggered . | . . . Exploration Rate (%) 36 | 7 63 38 Regions Visited 2 Branch Regions 1 Pre-discovered Areas . | . . . Known Exits Taken . | . . . Unknown Exits Taken 2 | 1 1 . Scrap Searched . | . . . Spaces Dug . | . . . Terrain Destroyed 25 | . . 25 Melee . | . . . Projectile . | . . . AOE 25 | . . 25 Terrain Rammed . | . . . Walls Destroyed . | . . . Machines Disabled . | . . . Actions | -11 -10 -10 --------- Run | Yrd Mat Min Total 651 | 95 366 190 Wait 10 | . 1 9 Move 549 | 77 326 146 Hop . | . . . Pick Up 9 | 1 7 1 Fast Attach 11 | 7 4 . Attach 1 | . . 1 Detach . | . . . Swap 7 | . . 7 Drop 8 | 1 3 4 Fire 56 | 9 25 22 Melee . | . . . Ram . | . . . Kick . | . . . Crush . | . . . Escape Stasis . | . . . Rewire . | . . . Trap . | . . . Miscellaneous . | . . . Route ------- -11/Scrapyard -10/Materials -10/Mines History --------- Turn | Location | Event 28 | -11/Scrapyard | Discovered new exit (range 16) 131 | -11/Scrapyard | Entered Materials 303 | -10/Materials | Build established: Mutant 544 | -10/Materials | Discovered new exit (range 13) 620 | -10/Materials | Entered Mines 932 | -10/Mines | Assembled infested the area 966 | -10/Mines | Core integrity fell below 50% 972 | -10/Mines | Core integrity fell below 20% 975 | -10/Mines | Destroyed by D-53 Grenadier with Mini Grenade Launcher Last Messages --------------- as-06962 destroyed. as-90771 destroyed. Lgt. Armor Plating destroyed. as-35254 destroyed. G-47 Trooper destroyed. R-06 Scavenger collects Imp. Heat Sink. D-53 Grenadier knocked back. Lgt. Nuclear Core destroyed. D-53 Grenadier knocked back. The unstable cave ceiling collapses. Lgt. Assault Rifle destroyed. The unstable cave ceiling collapses. Destroyed Shock Absorption System. K-01 Serf collects debris. Lgt. Cannon destroyed. Aluminum Leg destroyed. The unstable cave ceiling collapses. D-53 Grenadier destroyed. The unstable cave ceiling collapses. K-01 Serf collects debris. Map ----- +----------------------------------------------------+ | ##?????????????????????????????????????? | | #?????????????????????????????????????? | | # #?????????????????????????????????????? | | ## #?????????????????????????????????????? | | ?# ##?????????????????????????????????????? | | ?# #??????????????????????????????????????? | | ?# #??????????????????????????????????????? | | ?# ##??????????????????????????????????????? | | ?# ##???????????????????????????????????????? | | ?# ##???????????????????????????????????????? | | ?# ##?????????????####?????????????????????? | | ?# ##??????????### ##????????????????????? | | ?## ##????????## #????????????????????? | | ??## ##??????## #????????????????????? | | ??## #####?## #?????????????????????? | | ?## ### #?????????????????????? | | ## ##????????????????????? | | # % k ##???????????????????? | | % % ##??????????????????? | | % #### #??????????????????? | | # ##??## ###????????????????? | | # ##????## ##???????????????? | | ##??????## # t ##??????????????? | | ##????????## # #??????????????? | | ###??????????#### ##??????????????? | | ##???????????????# @ ##??????????????? | | #????????????????## # #??????????????? | | ##?????????????????# #??????????????? | | #???????????????????## ##??????????????? | | ?????????????????????# %??????????????? | | ?????????????????????## ##?????????????? | | ?????????????????????? d #??????????????? | | ?????????????????????? #??????????????? | | ?????????????????????## #??????????????? | | ?????????????????????? ??????????????? | | ?????????????????????? g ?????????????? | | ??????????????????????# ?????????????? | | ?????????????????????? #????????????? | | ?????????????????????? ##????????????? | | ?????????????????????? #??????????????? | | ??????????????????????? ???????????????? | | ???????????????????????? ???????????????? | | ???????????????????????? ????????????????? | | ???????????????????????? ????????????????? | | ?????????????????????????????????????????????? | | ?????????????????????????????????????????????? | | ?????????????????????????????????????????????? | | ?????????????????????????????????????????????? | | ?????????????????????????????????????????????? | | ?????????????????????????????????????????????? | +----------------------------------------------------+ Best States ------------- Heat Dissipation 25 Energy Generation 14 Energy Capacity 250 Matter Stores 300 Matter Capacity 300 Sight Range 16 Terrain Scan Density 10 Armor Coverage 150 Resistance: KI 20 Resistance: TH 20 Resistance: EX 20 Resistance: EM 20 Resistance: I 20 Resistance: S 20 Resistance: P 20 Evasion (%) 55 Offensive Hacking 10 Item Schematics ----------------- None Robot Schematics ------------------ None Fabricated ------------ Nothing Alien Tech Used ----------------- None Achievements -------------- Hunted Challenges ------------ None Game ------ Seed CoolantAluminumLeg Manual? 0 Play Time 00:09:00 Cumulative 22.1 hours Start 2025.04.25 @ 12:45:07 End 2025.04.25 @ 12:51:36 Sessions 1 Manual Loads 0 Difficulty Adventurer Special Mode None Game No. 32 Rogue 26 Adventurer 3 Explorer 3 Win Type - Total 0 Types 0/0/0/0/0/0/0/0/0 Lore% 9 Gallery% 27 Achievement% 24 Wizard Run 0 Options --------- Layout 1 ASCII 0 Keyboard 0 Movement Arrows Keybinds 0 Fullscreen 0 Font 28/ProggyBold Map View 50x43 Zoom Use 0% Tactical HUD 0 Map Filters NONE Filters NONE Steam X RUN: 15423aab-585b-48d9-9146-530d18600f87